fUSD/lending_fUSD_20250124
["ID","MTS","AMOUNT","RATE_DAILY","PERIOD"]
[350221406,1737705035796,-521.2,0.00018898,2]
[350221407,1737705035805,-844.74,0.00018898,2]
[350221408,1737705035814,-500.0,0.00018898,2]
[350221409,1737705035823,-500.0,0.00018898,2]
[350221410,1737705035832,-500.0,0.00018898,2]
[350221411,1737705035841,-508.62378819,0.00018898,2]
[350221412,1737705035851,-514.84251089,0.00018898,2]
[350221413,1737705035860,-500.0,0.00018898,2]
[350221414,1737705035869,-500.0,0.00018898,2]
[350221415,1737705035878,-805.41,0.00018898,2]
[350221416,1737705035887,-500.0,0.00018898,2]
[350221417,1737705035896,-717.09,0.00018898,2]
[350221418,1737705035906,-400.959005,0.00018898,2]
[350221419,1737705035927,-99.040995,0.00018898,2]
[350221420,1737705035936,-500.0,0.00018898,2]
[350221421,1737705035945,-500.0,0.00018898,2]
[350221422,1737705035955,-500.0,0.00018898,2]
[350221423,1737705035964,-500.0,0.00018898,2]
[350221424,1737705035973,-500.0,0.00018898,2]
[350221425,1737705035983,-500.0,0.00018898,2]
[350221426,1737705035992,-500.0,0.00018898,2]
[350221427,1737705036002,-500.0,0.00018898,2]
[350221428,1737705036012,-644.16906652,0.00018898,2]
[350221429,1737705036021,-500.0,0.00018898,2]
[350221430,1737705036170,-500.0,0.00018898,2]
[350221431,1737705036180,-500.0,0.00018898,2]
[350221432,1737705036190,-988.73,0.00018898,2]
[350221433,1737705036199,-2665.29,0.00018898,2]
[350221434,1737705036208,-500.0,0.00018898,2]
[350221435,1737705036218,-500.0,0.00018898,2]
[350221436,1737705036227,-606.05,0.00018898,2]
[350221437,1737705036236,-500.0,0.00018898,2]
[350221438,1737705036245,-500.0,0.00018898,2]
[350221439,1737705036255,-500.0,0.00018898,2]
[350221440,1737705036264,-493.0792018,0.00018898,2]
[350221441,1737705036273,-500.0,0.00018898,2]
[350221442,1737705036283,-500.0,0.00018898,2]
[350221443,1737705036292,-506.34772077,0.00018898,2]
[350221444,1737705036303,-500.0,0.00018898,2]
[350221445,1737705036312,-1115.72,0.00018898,2]
[350221446,1737705036322,-500.0,0.00018898,2]
[350221447,1737705036332,-500.0,0.00018898,2]
[350221448,1737705036342,-1643.54,0.00018898,2]
[350221449,1737705036351,-1622.92,0.00018898,2]
[350221450,1737705036360,-500.0,0.00018898,2]
[350221451,1737705036369,-500.0,0.00018898,2]
[350221452,1737705036379,-500.0,0.00018898,2]
[350221453,1737705036388,-500.0,0.00018898,2]
[350221454,1737705036397,-500.0,0.00018898,2]
[350221455,1737705036406,-500.0,0.00018898,2]
[350221456,1737705036415,-424.35663196,0.00018898,2]
[350221457,1737705036425,-508.29805593,0.00018898,2]
[350221458,1737705036434,-500.0,0.00018898,2]
[350221459,1737705036443,-503.99089407,0.00018898,2]
[350221460,1737705036452,-1436.83,0.00018898,2]
[350221461,1737705036461,-500.0,0.00018898,2]
[350221462,1737705036470,-500.0,0.00018898,2]
[350221463,1737705036479,-500.0,0.00018898,2]
[350221464,1737705036489,-296.90920668,0.00018898,2]
[350221465,1737705036498,-500.0,0.00018898,2]
[350221466,1737705036508,-500.0,0.00018898,2]
[350221467,1737705036518,-500.0,0.00018898,2]
[350221468,1737705036528,-506.38165543,0.00018898,2]
[350221469,1737705036538,-502.81329023,0.00018898,2]
[350221470,1737705036547,-500.0,0.00018898,2]
[350221471,1737705036556,-656.75,0.00018898,2]
[350221472,1737705036569,-511.93208304,0.00018898,2]
[350221473,1737705036579,-500.0,0.00018898,2]
[350221474,1737705036587,-500.0,0.00018898,2]
[350221475,1737705036596,-856.21,0.00018898,2]
[350221476,1737705036607,-500.0,0.00018898,2]
[350221477,1737705036616,-502.96541502,0.00018898,2]
[350221478,1737705036625,-515.9068742,0.00018898,2]
[350221479,1737705036640,-500.0,0.00018898,2]
[350221480,1737705036654,-506.17874685,0.00018898,2]
[350221481,1737705036663,-500.0,0.00018898,2]
[350221482,1737705036673,-500.0,0.00018898,2]
[350221483,1737705036682,-500.0,0.00018898,2]
[350221484,1737705036691,-500.0,0.00018898,2]
[350221485,1737705036701,-500.0,0.00018898,2]
[350221486,1737705036710,-500.0,0.00018898,2]
[350221487,1737705036719,-2898.88,0.00018898,2]
[350221488,1737705036729,-500.0,0.00018898,2]
[350221489,1737705036740,-628.07,0.00018898,2]
[350221490,1737705036751,-503.91940821,0.00018898,2]
[350221491,1737705036760,-500.0,0.00018898,2]
[350221492,1737705036770,-500.0,0.00018898,2]
[350221493,1737705036779,-500.0,0.00018898,2]
[350221494,1737705036789,-500.0,0.00018898,2]
[350221495,1737705036799,-500.0,0.00018898,2]
[350221496,1737705036809,-500.0,0.00018898,2]
[350221497,1737705036818,-500.0,0.00018898,2]
[350221498,1737705036828,-500.0,0.00018898,2]
[350221499,1737705036837,-500.0,0.00018898,2]
[350221500,1737705036847,-725.73,0.00018898,2]
[350221501,1737705036856,-500.0,0.00018898,2]
[350221502,1737705036866,-500.0,0.00018898,2]
[350221503,1737705036875,-500.0,0.00018898,2]
[350221504,1737705036885,-500.0,0.00018898,2]
[350221505,1737705036895,-500.0,0.00018898,2]
[350221506,1737705036904,-500.0,0.00018898,2]
[350221507,1737705036914,-500.0,0.00018898,2]
[350221508,1737705036923,-500.0,0.00018898,2]
[350221509,1737705036932,-500.0,0.00018898,2]
[350221510,1737705036942,-500.0,0.00018898,2]
[350221511,1737705036951,-432.26606688,0.00018898,2]
[350221512,1737705036960,-503.67998366,0.00018898,2]
[350221513,1737705036970,-500.0,0.00018898,2]
[350221514,1737705036979,-500.0,0.00018898,2]
[350221515,1737705036988,-860.04,0.00018898,2]
[350221516,1737705036998,-509.0696126,0.00018898,2]
[350221517,1737705037008,-630.49,0.00018898,2]
[350221518,1737705037017,-500.0,0.00018898,2]
[350221519,1737705037026,-500.0,0.00018898,2]
[350221520,1737705037036,-500.0,0.00018898,2]
[350221521,1737705037046,-500.0,0.00018898,2]
[350221522,1737705037057,-500.0,0.00018898,2]
[350221523,1737705037067,-502.32683428,0.00018898,2]
[350221524,1737705037077,-506.63830488,0.00018898,2]
[350221525,1737705037086,-368.4210704,0.00018898,2]
[350221526,1737705037096,-500.0,0.00018898,2]
[350221527,1737705037105,-500.0,0.00018898,2]
[350221528,1737705037115,-500.0,0.00018898,2]
[350221529,1737705037124,-1808.84,0.00018898,2]
[350221530,1737705037133,-500.0,0.00018898,2]
[350221531,1737705037142,-516.27831266,0.00018898,2]
[350221532,1737705037152,-1292.52,0.00018898,2]
[350221533,1737705037161,-500.0,0.00018898,2]
[350221534,1737705037171,-500.0,0.00018898,2]
[350221535,1737705037180,-500.0,0.00018898,2]
[350221536,1737705037190,-504.0806804,0.00018898,2]
[350221537,1737705037199,-500.0,0.00018898,2]
[350221538,1737705037209,-1230.35,0.00018898,2]
[350221539,1737705037219,-500.0,0.00018898,2]
[350221540,1737705037228,-500.0,0.00018898,2]
[350221541,1737705037238,-500.0,0.00018898,2]
[350221542,1737705037247,-564.5,0.00018898,2]
[350221543,1737705037256,-500.0,0.00018898,2]
[350221544,1737705037266,-500.0,0.00018898,2]
[350221545,1737705037275,-500.0,0.00018898,2]
[350221546,1737705037284,-175.81667387,0.00018898,2]
[350221547,1737705037293,-500.0,0.00018898,2]
[350221548,1737705037304,-500.0,0.00018898,2]
[350221549,1737705037313,-500.0,0.00018898,2]
[350221550,1737705037323,-500.0,0.00018898,2]
[350221551,1737705037332,-553.5,0.00018898,2]
[350221552,1737705037341,-500.0,0.00018898,2]
[350221553,1737705037351,-500.0,0.00018898,2]
[350221554,1737705037360,-984.31,0.00018898,2]
[350221555,1737705037369,-500.0,0.00018898,2]
[350221556,1737705037378,-500.0,0.00018898,2]
[350221557,1737705037388,-170.947867,0.00018898,2]
[350221558,1737705037397,-517.07240436,0.00018898,2]
[350221559,1737705037406,-500.0,0.00018898,2]
[350221560,1737705037416,-509.58718179,0.00018898,2]
[350221561,1737705037426,-1254.62,0.00018898,2]
[350221562,1737705037435,-500.0,0.00018898,2]
[350221563,1737705037444,-500.0,0.00018898,2]
[350221564,1737705037454,-500.0,0.00018898,2]
[350221565,1737705037463,-500.0,0.00018898,2]
[350221566,1737705037473,-500.0,0.00018898,2]
[350221567,1737705037482,-5850.6733,0.00018898,2]
[350221568,1737705037492,-178.0435121,0.00018899,2]
[350221569,1737705037501,-500.0,0.00018899,2]
[350221570,1737705037510,-500.0,0.00018899,2]
[350221571,1737705037519,-346.98882066,0.00018899,2]
[350221572,1737705037529,-503.61198811,0.00018899,2]
[350221573,1737705037538,-500.0,0.00018899,2]
[350221574,1737705037547,-500.0,0.00018899,2]
[350221575,1737705037558,-500.0,0.00018899,2]
[350221576,1737705037571,-504.34479003,0.00018899,2]
[350221577,1737705037580,-500.0,0.00018899,2]
[350221578,1737705037590,-511.65941259,0.00018899,2]
[350221579,1737705037599,-504.350326,0.00018899,2]
[350221580,1737705037610,-500.0,0.00018899,2]
[350221581,1737705037620,-625.30516773,0.00018899,2]
[350221582,1737705037629,-514.21137877,0.00018899,2]
[350221583,1737705037638,-500.0,0.00018899,2]
[350221584,1737705037647,-500.0,0.00018899,2]
[350221585,1737705037657,-500.0,0.00018899,2]
[350221586,1737705037666,-500.0,0.00018899,2]
[350221587,1737705037675,-503.70368938,0.00018899,2]
[350221588,1737705037684,-500.0,0.00018899,2]
[350221589,1737705037693,-500.0,0.00018899,2]
[350221590,1737705037702,-508.03663349,0.00018899,2]
[350221591,1737705037711,-500.0,0.00018899,2]
[350221592,1737705037720,-500.0,0.00018899,2]
[350221593,1737705037729,-500.0,0.00018899,2]
[350221594,1737705037738,-536.18516507,0.00018899,2]
[350221595,1737705037747,-527.593227,0.00018899,2]
[350221596,1737705037757,-260.57618485,0.00018899,2]
[350221597,1737705037766,-500.0,0.00018899,2]
[350221598,1737705037774,-577.98107709,0.00018899,2]
[350221599,1737705037784,-500.0,0.00018899,2]
[350221600,1737705037793,-648.95376522,0.00018899,2]
[350221601,1737705037803,-500.0,0.00018899,2]
[350221602,1737705037812,-500.0,0.00018899,2]
[350221603,1737705037822,-500.0,0.00018899,2]
[350221604,1737705037831,-500.0,0.00018899,2]
[350221605,1737705037840,-500.0,0.00018899,2]
[350221606,1737705037849,-500.0,0.00018899,2]
[350221607,1737705037858,-503.63238194,0.00018899,2]
[350221608,1737705037867,-500.0,0.00018899,2]
[350221609,1737705037876,-506.7372863,0.00018899,2]
[350221610,1737705037885,-509.79039102,0.00018899,2]
[350221611,1737705037894,-500.0,0.00018899,2]
[350221612,1737705037904,-500.0,0.00018899,2]
[350221613,1737705037913,-500.0,0.00018899,2]
[350221614,1737705037923,-500.0,0.00018899,2]
[350221615,1737705037932,-500.0,0.00018899,2]
[350221616,1737705037941,-670.22324001,0.00018899,2]
[350221617,1737705037950,-500.0,0.00018899,2]
[350221618,1737705037959,-500.0,0.00018899,2]
[350221619,1737705037968,-521.69,0.00018899,2]
[350221620,1737705037977,-639.69470344,0.00018899,2]
[350221621,1737705037987,-500.0,0.00018899,2]
[350221622,1737705037995,-500.0,0.00018899,2]
[350221623,1737705038005,-500.0,0.00018899,2]
[350221624,1737705038015,-503.38536235,0.00018899,2]
[350221625,1737705038026,-510.99815427,0.00018899,2]
[350221626,1737705038035,-500.0,0.00018899,2]
[350221627,1737705038044,-504.51965514,0.00018899,2]
[350221628,1737705038055,-500.0,0.00018899,2]
[350221629,1737705038064,-500.0,0.00018899,2]
[350221630,1737705038074,-470.77780338,0.00018899,2]
[350221631,1737705038083,-500.0,0.00018899,2]
[350221632,1737705038093,-500.0,0.00018899,2]
[350221633,1737705038102,-500.0,0.00018899,2]
[350221634,1737705038111,-500.0,0.00018899,2]
[350221635,1737705038121,-500.0,0.00018899,2]
[350221637,1737705038130,-500.0,0.00018899,2]
[350221638,1737705038139,-500.0,0.00018899,2]
[350221639,1737705038148,-503.60331159,0.00018899,2]
[350221641,1737705038157,-500.0,0.00018899,2]
[350221643,1737705038166,-500.0,0.00018899,2]
[350221645,1737705038175,-511.13210129,0.00018899,2]
[350221646,1737705038184,-506.07787008,0.00018899,2]
[350221647,1737705038194,-511.45680603,0.00018899,2]
[350221648,1737705038203,-500.0,0.00018899,2]
[350221649,1737705038212,-500.0,0.00018899,2]
[350221651,1737705038221,-510.69555983,0.00018899,2]
[350221653,1737705038230,-504.48105743,0.00018899,2]
[350221655,1737705038239,-500.0,0.00018899,2]
[350221657,1737705038249,-500.0,0.00018899,2]
[350221658,1737705038258,-500.0,0.00018899,2]
[350221659,1737705038267,-501.29991887,0.00018899,2]
[350221660,1737705038276,-500.0,0.00018899,2]
[350221661,1737705038285,-505.16182022,0.00018899,2]
[350221662,1737705038294,-500.0,0.00018899,2]
[350221663,1737705038304,-500.0,0.00018899,2]
[350221664,1737705038313,-500.0,0.00018899,2]
[350221665,1737705038322,-500.0,0.00018899,2]
[350221666,1737705038331,-500.0,0.00018899,2]
[350221667,1737705038340,-500.0,0.00018899,2]
[350221668,1737705038350,-500.0,0.00018899,2]
[350221669,1737705038359,-500.0,0.00018899,2]
[350221670,1737705038369,-500.0,0.00018899,2]
[350221671,1737705038379,-500.0,0.00018899,2]
[350221672,1737705038390,-500.0,0.00018899,2]
[350221673,1737705038400,-500.0,0.00018899,2]
[350221674,1737705038410,-500.0,0.00018899,2]
[350221675,1737705038420,-500.0,0.00018899,2]
[350221676,1737705038429,-500.0,0.00018899,2]
[350221677,1737705038438,-500.0,0.00018899,2]
[350221678,1737705038448,-519.16554087,0.00018899,2]
[350221679,1737705038457,-500.0,0.00018899,2]
[350221680,1737705038466,-507.37696558,0.00018899,2]
[350221681,1737705038475,-500.0,0.00018899,2]
[350221682,1737705038484,-507.94778149,0.00018899,2]
[350221683,1737705038493,-500.0,0.00018899,2]
[350221684,1737705038503,-500.0,0.00018899,2]
[350221685,1737705038512,-500.0,0.00018899,2]
[350221686,1737705038521,-500.0,0.00018899,2]
[350221687,1737705038530,-191.15100096,0.00018899,2]
[350221688,1737705038539,-245.53787934,0.00018899,2]
[350221689,1737705038548,-500.0,0.00018899,2]
[350221690,1737705038558,-500.0,0.00018899,2]
[350221691,1737705038572,-500.0,0.00018899,2]
[350221692,1737705038581,-625.46511779,0.00018899,2]
[350221693,1737705038590,-500.0,0.00018899,2]
[350221694,1737705038599,-500.0,0.00018899,2]
[350221695,1737705038609,-500.0,0.00018899,2]
[350221696,1737705038618,-500.0,0.00018899,2]
[350221697,1737705038627,-500.0,0.00018899,2]
[350221698,1737705038637,-376.13657499,0.00018899,2]
[350221699,1737705038646,-500.0,0.00018899,2]
[350221700,1737705038656,-500.0,0.00018899,2]
[350221701,1737705038664,-500.0,0.00018899,2]
[350221702,1737705038673,-500.0,0.00018899,2]
[350221703,1737705038682,-500.0,0.00018899,2]
[350221704,1737705038691,-507.23345005,0.00018899,2]
[350221705,1737705038700,-500.0,0.00018899,7]
[350221707,1737705038710,-500.0,0.00018899,2]
[350221709,1737705038719,-500.0,0.00018899,2]
[350221711,1737705038728,-500.0,0.00018899,2]
[350221712,1737705038736,-500.0,0.00018899,2]
[350221713,1737705038745,-500.0,0.00018899,2]
[350221714,1737705038754,-500.0,0.00018899,2]
[350221715,1737705038763,-515.73344942,0.00018899,2]
[350221716,1737705038772,-500.0,0.00018899,2]
[350221717,1737705038781,-502.94606304,0.00018899,2]
[350221718,1737705038790,-500.0,0.00018899,2]
[350221719,1737705038800,-500.0,0.00018899,2]
[350221720,1737705038809,-502.3587167,0.00018899,2]
[350221721,1737705038818,-501.43241384,0.00018899,2]
[350221722,1737705038827,-500.0,0.00018899,2]
[350221723,1737705038836,-502.00825182,0.00018899,2]
[350221724,1737705038845,-505.87756251,0.00018899,2]
[350221725,1737705038855,-500.0,0.00018899,2]
[350221726,1737705038866,-500.0,0.00018899,2]
[350221727,1737705038876,-500.0,0.00018899,2]
[350221729,1737705038886,-501.57166102,0.00018899,2]
[350221731,1737705038895,-501.52404158,0.00018899,2]
[350221732,1737705038904,-547.89,0.00018899,2]
[350221733,1737705038914,-502.27331741,0.00018899,2]
[350221734,1737705038923,-503.35791286,0.00018899,2]
[350221735,1737705038932,-500.0,0.00018899,2]
[350221736,1737705038942,-500.0,0.00018899,2]
[350221737,1737705038953,-500.0,0.00018899,2]
[350221738,1737705038962,-507.73222204,0.00018899,2]
[350221739,1737705038971,-443.14816538,0.00018899,2]
[350221740,1737705038980,-500.0,0.00018899,2]
[350221741,1737705038989,-503.22403485,0.00018899,2]
[350221742,1737705038998,-500.0,0.00018899,2]
[350221743,1737705039007,-500.0,0.00018899,2]
[350221744,1737705039016,-500.0,0.00018899,2]
[350221745,1737705039025,-500.0,0.00018899,2]
[350221746,1737705039035,-501.38974927,0.00018899,2]
[350221747,1737705039185,-500.0,0.00018899,2]
[350221748,1737705039195,-500.0,0.00018899,2]
[350221749,1737705039205,-500.0,0.00018899,2]
[350221750,1737705039215,-231.14617696,0.00018899,2]
[350221751,1737705039224,-500.0,0.00018899,2]
[350221752,1737705039233,-500.0,0.00018899,2]
[350221753,1737705039243,-500.0,0.00018899,2]
[350221754,1737705039252,-500.0,0.00018899,2]
[350221755,1737705039261,-500.0,0.00018899,2]
[350221756,1737705039271,-500.0,0.00018899,2]
[350221757,1737705039280,-500.0,0.00018899,2]
[350221758,1737705039289,-500.0,0.00018899,2]
[350221759,1737705039298,-500.0,0.00018899,2]
[350221760,1737705039307,-151.619357,0.00018899,2]
[350221761,1737705039317,-500.0,0.00018899,2]
[350221762,1737705039326,-500.0,0.00018899,2]
[350221763,1737705039336,-500.0,0.00018899,2]
[350221764,1737705039346,-500.0,0.00018899,2]
[350221765,1737705039355,-500.0,0.00018899,2]
[350221766,1737705039365,-500.0,0.00018899,2]
[350221767,1737705039374,-500.0,0.00018899,2]
[350221768,1737705039383,-500.0,0.00018899,2]
[350221769,1737705039392,-500.0,0.00018899,2]
[350221770,1737705039402,-500.0,0.00018899,2]
[350221771,1737705039411,-500.0,0.00018899,2]
[350221772,1737705039421,-500.0,0.00018899,2]
[350221773,1737705039431,-500.0,0.00018899,2]
[350221774,1737705039440,-500.0,0.00018899,2]
[350221775,1737705039449,-500.0,0.00018899,2]
[350221776,1737705039459,-154.450854,0.00018899,2]
[350221777,1737705039469,-500.0,0.00018899,2]
[350221778,1737705039479,-500.0,0.00018899,2]
[350221779,1737705039490,-500.0,0.00018899,2]
[350221780,1737705039501,-500.0,0.00018899,2]
[350221781,1737705039511,-500.0,0.00018899,2]
[350221782,1737705039520,-510.14848596,0.00018899,2]
[350221783,1737705039530,-151.0,0.00018899,2]
[350221784,1737705039541,-500.0,0.00018899,2]
[350221785,1737705039551,-500.0,0.00018899,2]
[350221786,1737705039562,-500.0,0.00018899,2]
[350221787,1737705039575,-500.0,0.00018899,2]
[350221788,1737705039586,-500.0,0.00018899,2]
[350221789,1737705039596,-500.0,0.00018899,2]
[350221790,1737705039605,-181.631858,0.00018899,2]
[350221791,1737705039616,-181.631858,0.00018899,2]
[350221792,1737705039626,-500.0,0.00018899,2]
[350221793,1737705039635,-500.0,0.00018899,2]
[350221794,1737705039647,-500.0,0.00018899,2]
[350221795,1737705039657,-151.0,0.00018899,2]
[350221796,1737705039666,-309.39,0.00018899,2]
[350221797,1737705039675,-500.0,0.00018899,2]
[350221798,1737705039684,-500.0,0.00018899,2]
[350221799,1737705039693,-500.0,0.00018899,2]
[350221800,1737705039702,-447.75769579,0.00018899,2]
[350221801,1737705039711,-500.0,0.00018899,2]
[350221802,1737705039720,-500.0,0.00018899,2]
[350221803,1737705039734,-500.0,0.00018899,2]
[350221804,1737705039744,-151.0,0.00018899,2]
[350221805,1737705039753,-501.70048734,0.00018899,2]
[350221806,1737705039763,-500.0,0.00018899,2]
[350221807,1737705039772,-504.70446029,0.00018899,2]
[350221808,1737705039781,-156.039558,0.00018899,2]
[350221809,1737705039790,-500.0,0.00018899,2]
[350221810,1737705039799,-500.0,0.00018899,2]
[350221811,1737705039810,-499.70858025,0.00018899,2]
[350221812,1737705039819,-567.31797796,0.00018899,2]
[350221813,1737705039828,-502.26809982,0.00018899,2]
[350221814,1737705039838,-500.0,0.00018899,2]
[350221815,1737705039847,-151.0,0.00018899,2]
[350221816,1737705039857,-151.0,0.00018899,2]
[350221817,1737705039867,-500.0,0.00018899,2]
[350221818,1737705039876,-500.0,0.00018899,2]
[350221819,1737705039885,-500.0,0.00018899,2]
[350221820,1737705039894,-405.98756736,0.00018899,2]
[350221821,1737705039903,-175.803845,0.00018899,2]
[350221822,1737705039912,-500.0,0.00018899,2]
[350221823,1737705039921,-500.0,0.00018899,2]
[350221824,1737705039931,-500.0,0.00018899,2]
[350221825,1737705039940,-500.0,0.00018899,2]
[350221826,1737705039950,-500.0,0.00018899,2]
[350221827,1737705039959,-500.0,0.00018899,2]
[350221828,1737705039969,-500.0,0.00018899,2]
[350221829,1737705039979,-151.0,0.00018899,2]
[350221830,1737705039988,-151.0,0.00018899,2]
[350221831,1737705040000,-500.0,0.00018899,2]
[350221832,1737705040009,-507.58786987,0.00018899,2]
[350221833,1737705040018,-500.0,0.00018899,2]
[350221834,1737705040028,-500.0,0.00018899,2]
[350221835,1737705040038,-151.0,0.00018899,2]
[350221836,1737705040048,-231.15353925,0.00018899,2]
[350221837,1737705040059,-151.0,0.00018899,2]
[350221838,1737705040068,-500.0,0.00018899,2]
[350221839,1737705040078,-151.677018,0.00018899,2]
[350221840,1737705040088,-500.0,0.00018899,2]
[350221841,1737705040099,-500.0,0.00018899,2]
[350221842,1737705040108,-314.10601523,0.00018899,2]
[350221843,1737705040117,-465.014873,0.00018899,2]
[350221844,1737705040127,-465.014873,0.00018899,2]
[350221845,1737705040137,-465.014873,0.00018899,2]
[350221846,1737705040147,-465.014873,0.00018899,2]
[350221847,1737705040157,-564.45743676,0.00018899,2]
[350221848,1737705040167,-151.0,0.00018899,2]
[350221849,1737705040176,-151.0,0.00018899,2]
[350221850,1737705040185,-151.0,0.00018899,2]
[350221851,1737705040195,-500.0,0.00018899,2]
[350221852,1737705040204,-500.0,0.00018899,2]
[350221853,1737705040214,-500.0,0.00018899,2]
[350221854,1737705040223,-500.0,0.00018899,2]
[350221855,1737705040233,-500.0,0.00018899,2]
[350221856,1737705040243,-500.0,0.00018899,2]
[350221857,1737705040252,-153.407778,0.00018899,2]
[350221858,1737705040263,-500.0,0.00018899,2]
[350221859,1737705040271,-500.0,0.00018899,2]
[350221861,1737705040280,-2549.83,0.00018899,2]
[350221863,1737705040290,-500.0,0.00018899,2]
[350221865,1737705040300,-151.0,0.00018899,2]
[350221867,1737705040310,-500.0,0.00018899,2]
[350221869,1737705040319,-152.814424,0.00018899,2]
[350221871,1737705040330,-151.0,0.00018899,2]
[350221873,1737705040339,-151.0,0.00018899,2]
[350221875,1737705040349,-153.608929,0.00018899,2]
[350221877,1737705040359,-500.0,0.00018899,2]
[350221879,1737705040369,-842.97,0.00018899,2]
[350221881,1737705040378,-151.0,0.00018899,2]
[350221883,1737705040388,-151.0,0.00018899,2]
[350221885,1737705040398,-151.0,0.00018899,2]
[350221887,1737705040407,-508.44186437,0.00018899,2]
[350221889,1737705040417,-1000.0,0.00018899,2]
[350221891,1737705040426,-505.49146765,0.00018899,2]
[350221893,1737705040436,-500.0,0.00018899,2]
[350221895,1737705040445,-500.0,0.00018899,2]
[350221897,1737705040455,-151.0,0.00018899,2]
[350221899,1737705040465,-151.0,0.00018899,2]
[350221901,1737705040474,-151.0,0.00018899,2]
[350221903,1737705040484,-1206.79,0.00018899,2]
[350221905,1737705040493,-661.05,0.00018899,2]
[350221907,1737705040503,-151.0,0.00018899,2]
[350221909,1737705040512,-151.0,0.00018899,2]
[350221911,1737705040521,-151.0,0.00018899,2]
[350221913,1737705040533,-151.0,0.00018899,2]
[350221915,1737705040542,-151.0,0.00018899,2]
[350221917,1737705040552,-151.0,0.00018899,2]
[350221919,1737705040563,-637.04,0.00018899,2]
[350221921,1737705040574,-968.36,0.00018899,2]
[350221923,1737705040583,-796.06,0.00018899,2]
[350221925,1737705040593,-205.67954,0.00018899,2]
[350221927,1737705040603,-205.67954,0.00018899,2]
[350221929,1737705040612,-205.67954,0.00018899,2]
[350221931,1737705040622,-205.67954,0.00018899,2]
[350221933,1737705040631,-205.67954,0.00018899,2]
[350221935,1737705040641,-205.67954,0.00018899,2]
[350221937,1737705040650,-252.892099,0.00018899,2]
[350221939,1737705040660,-252.892099,0.00018899,2]
[350221941,1737705040669,-500.0,0.00018899,2]
[350221943,1737705040679,-252.892099,0.00018899,2]
[350221945,1737705040688,-500.0,0.00018899,2]
[350221947,1737705040697,-252.892099,0.00018899,2]
[350221949,1737705040706,-252.892099,0.00018899,2]
[350221951,1737705040716,-252.892099,0.00018899,2]
[350221953,1737705040725,-500.0,0.00018899,2]
[350221955,1737705040735,-500.0,0.00018899,2]
[350221957,1737705040744,-500.0,0.00018899,2]
[350221959,1737705040753,-151.0,0.00018899,2]
[350221961,1737705040762,-151.0,0.00018899,2]
[350221963,1737705040772,-151.0,0.00018899,2]
[350221964,1737705040781,-1641.94,0.00018899,2]
[350221967,1737705040791,-151.0,0.00018899,2]
[350221969,1737705040800,-280.769806,0.00018899,2]
[350221970,1737705040809,-151.0,0.00018899,2]
[350221972,1737705040819,-151.0,0.00018899,2]
[350221975,1737705040829,-151.0,0.00018899,2]
[350221977,1737705040838,-500.0,0.00018899,2]